fUSD/lending_fUSD_20260516
["ID","MTS","AMOUNT","RATE_DAILY","PERIOD"]
[422375602,1778898638000,-4133.30912172,0.00014669,2]
[422375612,1778898638000,-401.36955,0.0001485,2]
[422375615,1778898638000,-150.0,0.0001486,2]
[422375614,1778898638000,-401.36955,0.0001486,2]
[422375600,1778898638000,-5000.01,0.00014643,2]
[422375606,1778898638000,-9999.99,0.0001473,2]
[422375610,1778898638000,-401.36955,0.0001485,2]
[422375604,1778898638000,-2074.45039475,0.000147,2]
[422375608,1778898638000,-5000.01,0.00014792,2]
[422375617,1778898638000,-259.94,0.0001487,2]
[422375619,1778898638000,-200.0,0.0001488,2]
[422375631,1778898638000,-392.8054,0.000149,2]
[422375629,1778898638000,-4133.30912172,0.000149,2]
[422375646,1778898638000,-250.0,0.00014966,2]
[422375623,1778898638000,-1500.0,0.000149,2]
[422375642,1778898638000,-3267.44524086,0.000149,2]
[422375640,1778898638000,-2754.04024876,0.000149,2]
[422375638,1778898638000,-1138.42484908,0.000149,2]
[422375627,1778898638000,-375.0407389,0.000149,2]
[422375637,1778898638000,-318.5716556,0.000149,2]
[422375625,1778898638000,-19856.597,0.000149,2]
[422375621,1778898638000,-9999.99,0.00014889,2]
[422375644,1778898638000,-250.0,0.00014953,2]
[422375790,1778898639000,-689.42613924,0.00014998,2]
[422375806,1778898639000,-689.42613924,0.00014998,2]
[422375796,1778898639000,-689.42613924,0.00014998,2]
[422375808,1778898639000,-689.42613924,0.00014998,2]
[422375792,1778898639000,-689.42613924,0.00014998,2]
[422375787,1778898639000,-689.42613924,0.00014998,2]
[422375782,1778898639000,-689.42613924,0.00014998,2]
[422375775,1778898639000,-689.42613924,0.00014998,2]
[422375785,1778898639000,-689.42613924,0.00014998,2]
[422375771,1778898639000,-689.42613924,0.00014998,2]
[422375810,1778898639000,-689.42613924,0.00014998,2]
[422375784,1778898639000,-689.42613924,0.00014998,2]
[422375794,1778898639000,-689.42613924,0.00014998,2]
[422375802,1778898639000,-689.42613924,0.00014998,2]
[422375827,1778898639000,-689.42613922,0.00014998,2]
[422375815,1778898639000,-689.42613924,0.00014998,2]
[422375813,1778898639000,-689.42613924,0.00014998,2]
[422375821,1778898639000,-689.42613924,0.00014998,2]
[422375804,1778898639000,-689.42613924,0.00014998,2]
[422375811,1778898639000,-689.42613924,0.00014998,2]
[422375798,1778898639000,-689.42613924,0.00014998,2]
[422375820,1778898639000,-689.42613924,0.00014998,2]
[422375800,1778898639000,-689.42613924,0.00014998,2]
[422375823,1778898639000,-689.42613922,0.00014998,2]
[422375826,1778898639000,-689.42613922,0.00014998,2]
[422375825,1778898639000,-689.42613922,0.00014998,2]
[422375829,1778898639000,-689.42613922,0.00014998,2]
[422375774,1778898639000,-689.42613924,0.00014998,2]
[422375833,1778898639000,-689.42613922,0.00014998,2]
[422375818,1778898639000,-689.42613924,0.00014998,2]
[422375779,1778898639000,-689.42613924,0.00014998,2]
[422375721,1778898639000,-703.09747911,0.00014998,2]
[422375769,1778898639000,-689.42613924,0.00014998,2]
[422375835,1778898639000,-689.42613922,0.00014998,2]
[422375707,1778898639000,-703.09747911,0.00014998,2]
[422375709,1778898639000,-703.09747911,0.00014998,2]
[422375723,1778898639000,-703.09747911,0.00014998,2]
[422375719,1778898639000,-703.09747911,0.00014998,2]
[422375711,1778898639000,-703.09747911,0.00014998,2]
[422375715,1778898639000,-703.09747911,0.00014998,2]
[422375713,1778898639000,-703.09747911,0.00014998,2]
[422375729,1778898639000,-703.09747911,0.00014998,2]
[422375725,1778898639000,-703.09747911,0.00014998,2]
[422375727,1778898639000,-703.09747911,0.00014998,2]
[422375717,1778898639000,-703.09747911,0.00014998,2]
[422375731,1778898639000,-703.09747911,0.00014998,2]
[422375733,1778898639000,-703.09747911,0.00014998,2]
[422375735,1778898639000,-703.09747911,0.00014998,2]
[422375751,1778898639000,-703.09747911,0.00014998,2]
[422375737,1778898639000,-703.09747911,0.00014998,2]
[422375765,1778898639000,-703.09747911,0.00014998,2]
[422375777,1778898639000,-689.42613924,0.00014998,2]
[422375761,1778898639000,-703.09747911,0.00014998,2]
[422375763,1778898639000,-703.09747911,0.00014998,2]
[422375759,1778898639000,-703.09747911,0.00014998,2]
[422375741,1778898639000,-703.09747911,0.00014998,2]
[422375767,1778898639000,-648.18,0.00014998,2]
[422375757,1778898639000,-703.09747911,0.00014998,2]
[422375739,1778898639000,-703.09747911,0.00014998,2]
[422375753,1778898639000,-703.09747911,0.00014998,2]
[422375745,1778898639000,-703.09747911,0.00014998,2]
[422375755,1778898639000,-703.09747911,0.00014998,2]
[422375747,1778898639000,-703.09747911,0.00014998,2]
[422375749,1778898639000,-703.09747911,0.00014998,2]
[422375743,1778898639000,-703.09747911,0.00014998,2]
[422375837,1778898639000,-500.0,0.00014999,2]
[422375831,1778898639000,-689.42613922,0.00014998,2]
[422375842,1778898639000,-173.61623274,0.00014999,2]
[422375906,1778898639000,-500.0,0.00014999,2]
[422375921,1778898639000,-500.0,0.00014999,2]
[422375907,1778898639000,-500.0,0.00014999,2]
[422375909,1778898639000,-500.0,0.00014999,2]
[422375919,1778898639000,-500.0,0.00014999,2]
[422375923,1778898639000,-500.0,0.00014999,2]
[422375927,1778898639000,-500.0,0.00014999,2]
[422375930,1778898639000,-500.0,0.00014999,2]
[422375936,1778898639000,-500.0,0.00014999,2]
[422375932,1778898639000,-500.0,0.00014999,2]
[422375938,1778898639000,-500.0,0.00014999,2]
[422375946,1778898639000,-500.0,0.00014999,2]
[422375942,1778898639000,-500.0,0.00014999,2]
[422375944,1778898639000,-500.0,0.00014999,2]
[422375915,1778898639000,-500.0,0.00014999,2]
[422375934,1778898639000,-500.0,0.00014999,2]
[422375948,1778898639000,-500.0,0.00014999,2]
[422375950,1778898639000,-500.0,0.00014999,2]
[422375952,1778898639000,-500.0,0.00014999,2]
[422375962,1778898639000,-648.18,0.00014999,2]
[422375972,1778898639000,-648.18,0.00014999,2]
[422375954,1778898639000,-500.0,0.00014999,2]
[422375956,1778898639000,-646.23431687,0.00014999,2]
[422375960,1778898639000,-648.18,0.00014999,2]
[422375964,1778898639000,-648.18,0.00014999,2]
[422375966,1778898639000,-648.18,0.00014999,2]
[422375970,1778898639000,-648.18,0.00014999,2]
[422375968,1778898639000,-648.18,0.00014999,2]
[422375958,1778898639000,-648.18,0.00014999,2]
[422375824,1778898639000,-689.42613922,0.00014998,2]
[422375940,1778898639000,-500.0,0.00014999,2]
[422375911,1778898639000,-500.0,0.00014999,2]
[422375926,1778898639000,-500.0,0.00014999,2]
[422375901,1778898639000,-500.0,0.00014999,2]
[422375871,1778898639000,-224.61978878,0.00014999,2]
[422375866,1778898639000,-500.0,0.00014999,2]
[422375852,1778898639000,-500.0,0.00014999,2]
[422375864,1778898639000,-271.93590561,0.00014999,2]
[422375862,1778898639000,-439.9075084,0.00014999,2]
[422375854,1778898639000,-500.0,0.00014999,2]
[422375869,1778898639000,-500.0,0.00014999,2]
[422375850,1778898639000,-319.08595609,0.00014999,2]
[422375917,1778898639000,-500.0,0.00014999,2]
[422375848,1778898639000,-500.0,0.00014999,2]
[422375860,1778898639000,-500.0,0.00014999,2]
[422375856,1778898639000,-500.0,0.00014999,2]
[422375844,1778898639000,-500.0,0.00014999,2]
[422375840,1778898639000,-500.0,0.00014999,2]
[422375858,1778898639000,-500.0,0.00014999,2]
[422375873,1778898639000,-910.78222874,0.00014999,2]
[422375846,1778898639000,-500.0,0.00014999,2]
[422375877,1778898639000,-500.0,0.00014999,2]
[422375875,1778898639000,-485.47662152,0.00014999,2]
[422375913,1778898639000,-500.0,0.00014999,2]
[422375903,1778898639000,-500.0,0.00014999,2]
[422375898,1778898639000,-500.0,0.00014999,2]
[422375894,1778898639000,-500.0,0.00014999,2]
[422375890,1778898639000,-500.0,0.00014999,2]
[422375888,1778898639000,-500.0,0.00014999,2]
[422375899,1778898639000,-500.0,0.00014999,2]
[422375895,1778898639000,-500.0,0.00014999,2]
[422375886,1778898639000,-500.0,0.00014999,2]
[422375881,1778898639000,-500.0,0.00014999,2]
[422375892,1778898639000,-500.0,0.00014999,2]
[422375884,1778898639000,-500.0,0.00014999,2]
[422375879,1778898639000,-1872.07836152,0.00014999,2]
[422376009,1778898640000,-300.0,0.00014999,2]
[422376002,1778898640000,-666.0,0.00014999,2]
[422376022,1778898640000,-150.0,0.00015,2]
[422376015,1778898640000,-934.0,0.00015,5]
[422376018,1778898640000,-319.40576887,0.00015,2]
[422376016,1778898640000,-747.0,0.00015,5]
[422376003,1778898640000,-300.0,0.00014999,2]
[422375997,1778898640000,-648.18,0.00014999,2]
[422375999,1778898640000,-648.36461365,0.00014999,2]
[422375995,1778898640000,-648.18,0.00014999,2]
[422375983,1778898640000,-648.18,0.00014999,2]
[422375993,1778898640000,-648.18,0.00014999,2]
[422375990,1778898640000,-648.18,0.00014999,2]
[422375989,1778898640000,-648.18,0.00014999,2]
[422375985,1778898640000,-648.18,0.00014999,2]
[422375981,1778898640000,-648.18,0.00014999,2]
[422375987,1778898640000,-648.18,0.00014999,2]
[422375977,1778898640000,-648.18,0.00014999,2]
[422375975,1778898640000,-648.18,0.00014999,2]
[422375979,1778898640000,-648.18,0.00014999,2]
[422376013,1778898640000,-189.69911789,0.00014999,2]
[422376001,1778898640000,-300.0,0.00014999,2]
[422376007,1778898640000,-300.0,0.00014999,2]
[422376054,1778898640000,-150.974,0.00015,2]
[422376011,1778898640000,-300.0,0.00014999,2]
[422376064,1778898640000,-3093.50447947,0.00015,2]
[422376060,1778898640000,-1929476.03965467,0.00015,2]
[422376058,1778898640000,-150.823,0.00015,2]
[422376066,1778898640000,-2763.33395894,0.00015,2]
[422376056,1778898640000,-151.0,0.00015,2]
[422376050,1778898640000,-250.0,0.00015,2]
[422376048,1778898640000,-165.938,0.00015,2]
[422376052,1778898640000,-242.781,0.00015,2]
[422376034,1778898640000,-150.0,0.00015,2]
[422376046,1778898640000,-192.979,0.00015,2]
[422376030,1778898640000,-150.0,0.00015,2]
[422376036,1778898640000,-663.71786296,0.00015,2]
[422376042,1778898640000,-348.34,0.00015,2]
[422376044,1778898640000,-150.224,0.00015,2]
[422376040,1778898640000,-174.174,0.00015,2]
[422376038,1778898640000,-200.0,0.00015,2]
[422376028,1778898640000,-377.90049415,0.00015,2]
[422376026,1778898640000,-150.0,0.00015,2]
[422376024,1778898640000,-2172442.44899029,0.00015,2]
[422376020,1778898640000,-150.0,0.00015,2]
[422376032,1778898640000,-595.57617731,0.00015,2]
[422376005,1778898640000,-300.0,0.00014999,2]
[422376313,1778898642000,-149.77073947,0.00015,2]
[422376312,1778898642000,-1382.96692983,0.000147,2]
[422376314,1778898643000,-926.0,0.00015,2]
[422376315,1778898643000,-5840.50822803,0.00015,2]
[422376340,1778898646000,-262.0170446,0.000149,2]
[422376338,1778898646000,-921.97795322,0.000147,2]
[422376339,1778898646000,-479.76549682,0.000149,2]
[422376391,1778899364000,159.92173793,0.00030079,120]
[422376392,1778899432000,275.30785145,0.00030079,120]
[422376394,1778899536000,224.1,7.071e-05,2]
[422376393,1778899536000,224.1,6.73e-05,2]
[422376396,1778899537000,224.1,7.751e-05,2]
[422376395,1778899537000,224.1,7.411e-05,2]
[422376397,1778899538000,224.1,8.092e-05,2]
[422376398,1778899538000,224.1,8.432e-05,2]
[422376400,1778899538000,224.1,9.113e-05,2]
[422376401,1778899538000,224.1,9.453e-05,2]
[422376399,1778899538000,224.1,8.772e-05,2]
[422376402,1778899539000,224.1,9.793e-05,2]
[422376404,1778899610000,-20.46600499,0.00010474,2]
[422376403,1778899610000,-224.1,0.00010133,2]
[422376405,1778899821000,152.1404719,0.00030079,120]
[422376413,1778899831000,-224.1,0.00011835,2]
[422376409,1778899831000,-224.1,0.00010814,2]
[422376410,1778899831000,-141.39769541,0.00011154,2]
[422376412,1778899831000,-224.1,0.00011495,2]
[422376415,1778899831000,-224.1,0.00012175,2]
[422376417,1778899831000,-163.39,0.00012578,2]
[422376408,1778899831000,-203.63399501,0.00010474,2]
[422376416,1778899831000,-224.1,0.00012516,2]
[422376414,1778899831000,-393.190361,0.00012114,2]
[422376419,1778899831000,-2000.0,0.0001272,2]
[422376418,1778899831000,-152.0,0.00012641,7]
[422376420,1778899831000,-150.0,0.00012738,2]
[422376422,1778899831000,-370.2064,0.00012739,2]
[422376421,1778899831000,-80062.1192,0.00012739,2]
[422376411,1778899831000,-82.70230459,0.00011154,2]
[422376448,1778899832000,-166.66,0.00013836,2]
[422376450,1778899832000,-166.66,0.00013973,2]
[422376451,1778899832000,-166.66,0.0001411,2]
[422376449,1778899832000,-150.0,0.00013916,2]
[422376453,1778899832000,-269.02,0.00014159,2]
[422376452,1778899832000,-150.0,0.0001413,2]
[422376454,1778899832000,-166.79,0.00014164,2]
[422376456,1778899832000,-3496.70275186,0.0001421,2]
[422376457,1778899832000,-2833.00028301,0.00014238,2]
[422376458,1778899832000,-166.66,0.00014247,2]
[422376447,1778899832000,-255.0,0.00013833,2]
[422376459,1778899832000,-500.0,0.00014249,2]
[422376467,1778899832000,-125252.01432843,0.0001425,2]
[422376469,1778899832000,-3496.70275185,0.00014287,2]
[422376461,1778899832000,-500.0,0.00014249,2]
[422376462,1778899832000,-2345.73237,0.0001425,2]
[422376473,1778899832000,-2833.00028295,0.00014312,2]
[422376455,1778899832000,-503.40654584,0.00014192,2]
[422376445,1778899832000,-269.02,0.00013814,2]
[422376441,1778899832000,-166.66,0.00013699,2]
[422376437,1778899832000,-522.95350649,0.00013698,2]
[422376427,1778899832000,-150.0,0.00013488,2]
[422376428,1778899832000,-150.0,0.00013488,2]
[422376424,1778899832000,-224.1,0.00013196,2]
[422376426,1778899832000,-577.54510623,0.00013356,2]
[422376425,1778899832000,-500.0,0.00013356,2]
[422376423,1778899832000,-224.1,0.00012856,2]
[422376429,1778899832000,-270.89818764,0.00013488,2]
[422376431,1778899832000,-150.0,0.00013488,2]
[422376430,1778899832000,-150.0,0.00013488,2]
[422376433,1778899832000,-276.33,0.00013608,2]
[422376432,1778899832000,-1869.34736041,0.000135,2]
[422376443,1778899832000,-500.0,0.00013746,2]
[422376435,1778899832000,-433.61469409,0.00013698,2]
[422376439,1778899832000,-500.0,0.00013698,2]
[422376436,1778899832000,-327.86432009,0.00013698,2]
[422376465,1778899832000,-96772.79230824,0.0001425,2]
[422376442,1778899832000,-150.0,0.00013702,2]
[422376444,1778899832000,-524.48047513,0.00013746,2]
[422376474,1778899832000,-150.0,0.00014344,2]
[422376434,1778899832000,-500.0,0.00013698,2]
[422376471,1778899832000,-2000.0,0.0001431,2]
[422376500,1778899832000,-667.91103566,0.000147,2]
[422376499,1778899832000,-914.31806116,0.000147,2]
[422376498,1778899832000,-279.92557168,0.000147,2]
[422376493,1778899832000,-3496.70275185,0.00014593,2]
[422376501,1778899832000,-140.29970459,0.00014713,2]
[422376502,1778899832000,-766.73229862,0.00014713,2]
[422376507,1778899832000,-500.0,0.00014726,2]
[422376504,1778899832000,-446.65059787,0.00014713,2]
[422376492,1778899832000,-150.0,0.00014558,2]
[422376503,1778899832000,-681.17768432,0.00014713,2]
[422376505,1778899832000,-500.0,0.00014726,2]
[422376508,1778899832000,-500.0,0.00014726,2]
[422376511,1778899832000,-723.91269507,0.00014747,2]
[422376506,1778899832000,-500.0,0.00014726,2]
[422376513,1778899832000,-1490.25888316,0.00014753,2]
[422376512,1778899832000,-787.3744241,0.00014747,2]
[422376514,1778899832000,-970.44892758,0.00014753,2]
[422376460,1778899832000,-500.0,0.00014249,2]
[422376510,1778899832000,-1985.41563268,0.00014747,2]
[422376496,1778899832000,-350.0,0.00014676,2]
[422376509,1778899832000,-696.0,0.00014726,2]
[422376491,1778899832000,-2833.00028295,0.00014532,2]
[422376463,1778899832000,-27961.45471212,0.0001425,2]
[422376497,1778899832000,-2833.00028295,0.00014679,2]
[422376476,1778899832000,-166.66,0.00014384,2]
[422376487,1778899832000,-562.85,0.00014504,2]
[422376480,1778899832000,-2833.00028295,0.00014459,2]
[422376477,1778899832000,-2833.00028295,0.00014385,2]
[422376479,1778899832000,-350.0,0.00014442,2]
[422376488,1778899832000,-1487.69,0.00014504,2]
[422376490,1778899832000,-3496.70275185,0.00014517,2]
[422376475,1778899832000,-3496.70275185,0.00014363,2]
[422376486,1778899832000,-1355.53,0.00014504,2]
[422376485,1778899832000,-9999.99,0.00014504,2]
[422376489,1778899832000,-269.02,0.00014504,2]
[422376482,1778899832000,-3221.58,0.00014504,2]
[422376494,1778899832000,-2833.00028295,0.00014606,2]
[422376483,1778899832000,-299.99,0.00014504,2]
[422376478,1778899832000,-3496.70275185,0.0001444,2]
[422376495,1778899832000,-3496.70275185,0.0001467,2]
[422376481,1778899832000,-2653.24,0.00014504,2]
[422376523,1778899838000,-372.29247221,0.00014753,2]
[422376524,1778899838000,-150.0,0.00014772,2]
[422376525,1778899838000,-371.48893081,0.000148,2]
[422376522,1778899838000,-1768.84614461,0.000147,2]
[422376565,1778899839000,-515.14926728,0.00014998,2]
[422376566,1778899839000,-500.0,0.00014998,2]
[422376567,1778899839000,-509.75253239,0.00014998,2]
[422376568,1778899839000,-504.08398651,0.00014998,2]
[422376563,1778899839000,-500.0,0.00014998,2]
[422376560,1778899839000,-485.47662152,0.00014998,2]
[422376562,1778899839000,-1872.07836152,0.00014998,2]
[422376561,1778899839000,-910.78222874,0.00014998,2]
[422376558,1778899839000,-250.0,0.00014993,2]
[422376572,1778899839000,-500.33214469,0.00014998,2]
[422376559,1778899839000,-151.0,0.00014997,2]
[422376564,1778899839000,-490.0,0.00014998,2]
[422376569,1778899839000,-669.02,0.00014998,2]
[422376580,1778899839000,-439.9075084,0.00014999,2]
[422376573,1778899839000,-529.54071265,0.00014998,2]
[422376571,1778899839000,-500.0,0.00014998,2]
[422376575,1778899839000,-500.0,0.00014999,2]
[422376574,1778899839000,-500.0,0.00014999,2]
[422376577,1778899839000,-500.0,0.00014999,2]
[422376576,1778899839000,-500.0,0.00014999,2]
[422376578,1778899839000,-224.61978878,0.00014999,2]
[422376579,1778899839000,-500.0,0.00014999,2]
[422376581,1778899839000,-500.0,0.00014999,2]
[422376584,1778899839000,-500.0,0.00014999,2]
[422376582,1778899839000,-500.0,0.00014999,2]
[422376585,1778899839000,-271.93590561,0.00014999,2]
[422376555,1778899839000,-150.0,0.00014986,2]
[422376570,1778899839000,-506.02433073,0.00014998,2]
[422376556,1778899839000,-150.0,0.00014986,2]
[422376531,1778899839000,-269.02,0.0001485,2]
[422376552,1778899839000,-250.0,0.00014974,2]
[422376526,1778899839000,-764.81758098,0.000148,2]
[422376527,1778899839000,-5000.01,0.00014802,2]
[422376528,1778899839000,-2034.8602854,0.00014806,2]
[422376530,1778899839000,-2833.00028295,0.00014826,2]
[422376534,1778899839000,-527.28307,0.0001486,2]
[422376533,1778899839000,-527.28307,0.0001485,2]
[422376536,1778899839000,-732.632,0.0001488,2]
[422376529,1778899839000,-3496.70275185,0.00014823,2]
[422376532,1778899839000,-527.28306,0.0001485,2]
[422376535,1778899839000,-200.0,0.0001488,2]
[422376538,1778899839000,-33179.6252,0.000149,2]
[422376583,1778899839000,-500.0,0.00014999,2]
[422376537,1778899839000,-500.0,0.00014899,2]
[422376557,1778899839000,-150.0,0.00014986,2]
[422376539,1778899839000,-5000.0,0.000149,2]
[422376543,1778899839000,-2034.8602854,0.000149,2]
[422376542,1778899839000,-153.61309489,0.000149,2]
[422376544,1778899839000,-2833.00028295,0.000149,2]
[422376548,1778899839000,-2500.0,0.000149,2]
[422376547,1778899839000,-540.93477981,0.000149,2]
[422376546,1778899839000,-3496.70275185,0.000149,2]
[422376540,1778899839000,-1500.0,0.000149,2]
[422376545,1778899839000,-918.01341626,0.000149,2]
[422376550,1778899839000,-350.0,0.00014961,2]
[422376549,1778899839000,-250.0,0.00014948,2]
[422376553,1778899839000,-250.0,0.00014984,2]
[422376551,1778899839000,-250.0,0.00014962,2]
[422376554,1778899839000,-150.0,0.00014985,2]
[422376541,1778899839000,-392.8054,0.000149,2]
[422376586,1778899839000,-500.0,0.00014999,2]
[422376635,1778899839000,-884.4418485,0.00014999,2]
[422376588,1778899839000,-500.0,0.00014999,2]
[422376624,1778899839000,-884.4418485,0.00014999,2]
[422376625,1778899839000,-884.4418485,0.00014999,2]
[422376619,1778899839000,-884.4418485,0.00014999,2]
[422376623,1778899839000,-884.4418485,0.00014999,2]
[422376620,1778899839000,-884.4418485,0.00014999,2]
[422376627,1778899839000,-884.4418485,0.00014999,2]
[422376626,1778899839000,-884.4418485,0.00014999,2]
[422376628,1778899839000,-884.4418485,0.00014999,2]
[422376629,1778899839000,-884.4418485,0.00014999,2]
[422376630,1778899839000,-884.4418485,0.00014999,2]
[422376631,1778899839000,-884.4418485,0.00014999,2]
[422376637,1778899839000,-884.4418485,0.00014999,2]
[422376638,1778899839000,-884.4418485,0.00014999,2]
[422376632,1778899839000,-884.4418485,0.00014999,2]
[422376634,1778899839000,-884.4418485,0.00014999,2]
[422376633,1778899839000,-884.4418485,0.00014999,2]
[422376639,1778899839000,-884.4418485,0.00014999,2]
[422376640,1778899839000,-884.4418485,0.00014999,2]
[422376642,1778899839000,-884.4418485,0.00014999,2]
[422376645,1778899839000,-884.4418485,0.00014999,2]
[422376643,1778899839000,-884.4418485,0.00014999,2]
[422376641,1778899839000,-884.4418485,0.00014999,2]
[422376644,1778899839000,-884.4418485,0.00014999,2]
[422376647,1778899839000,-884.4418485,0.00014999,2]
[422376646,1778899839000,-884.4418485,0.00014999,2]
[422376648,1778899839000,-884.4418485,0.00014999,2]
[422376587,1778899839000,-500.0,0.00014999,2]
[422376621,1778899839000,-884.4418485,0.00014999,2]
[422376622,1778899839000,-884.4418485,0.00014999,2]
[422376636,1778899839000,-884.4418485,0.00014999,2]
[422376617,1778899839000,-884.4418485,0.00014999,2]
[422376589,1778899839000,-173.61623274,0.00014999,2]
[422376591,1778899839000,-500.0,0.00014999,2]
[422376592,1778899839000,-884.4418485,0.00014999,2]
[422376597,1778899839000,-884.4418485,0.00014999,2]
[422376594,1778899839000,-884.4418485,0.00014999,2]
[422376593,1778899839000,-884.4418485,0.00014999,2]
[422376596,1778899839000,-884.4418485,0.00014999,2]
[422376595,1778899839000,-884.4418485,0.00014999,2]
[422376599,1778899839000,-884.4418485,0.00014999,2]
[422376598,1778899839000,-884.4418485,0.00014999,2]
[422376600,1778899839000,-884.4418485,0.00014999,2]
[422376590,1778899839000,-500.0,0.00014999,2]
[422376601,1778899839000,-884.4418485,0.00014999,2]
[422376602,1778899839000,-884.4418485,0.00014999,2]
[422376618,1778899839000,-884.4418485,0.00014999,2]
[422376603,1778899839000,-884.4418485,0.00014999,2]
[422376604,1778899839000,-884.4418485,0.00014999,2]
[422376616,1778899839000,-884.4418485,0.00014999,2]
[422376613,1778899839000,-884.4418485,0.00014999,2]
[422376614,1778899839000,-884.4418485,0.00014999,2]
[422376609,1778899839000,-884.4418485,0.00014999,2]
[422376610,1778899839000,-884.4418485,0.00014999,2]
[422376615,1778899839000,-884.4418485,0.00014999,2]
[422376608,1778899839000,-884.4418485,0.00014999,2]
[422376612,1778899839000,-884.4418485,0.00014999,2]
[422376607,1778899839000,-884.4418485,0.00014999,2]
[422376605,1778899839000,-884.4418485,0.00014999,2]
[422376606,1778899839000,-884.4418485,0.00014999,2]
[422376611,1778899839000,-884.4418485,0.00014999,2]
[422376687,1778899840000,-500.0,0.00014999,2]
[422376686,1778899840000,-500.0,0.00014999,2]
[422376684,1778899840000,-866.23275162,0.00014999,2]
[422376685,1778899840000,-866.23275162,0.00014999,2]
[422376683,1778899840000,-866.23275162,0.00014999,2]
[422376680,1778899840000,-866.23275162,0.00014999,2]
[422376679,1778899840000,-866.23275162,0.00014999,2]
[422376688,1778899840000,-500.0,0.00014999,2]
[422376681,1778899840000,-866.23275162,0.00014999,2]
[422376689,1778899840000,-500.0,0.00014999,2]
[422376682,1778899840000,-866.23275162,0.00014999,2]
[422376691,1778899840000,-500.0,0.00014999,2]
[422376698,1778899840000,-500.0,0.00014999,2]
[422376694,1778899840000,-500.0,0.00014999,2]
[422376690,1778899840000,-500.0,0.00014999,2]
[422376692,1778899840000,-500.0,0.00014999,2]
[422376693,1778899840000,-500.0,0.00014999,2]
[422376696,1778899840000,-500.0,0.00014999,2]
[422376677,1778899840000,-866.23275162,0.00014999,2]
[422376699,1778899840000,-500.0,0.00014999,2]
[422376695,1778899840000,-500.0,0.00014999,2]
[422376700,1778899840000,-500.0,0.00014999,2]
[422376697,1778899840000,-500.0,0.00014999,2]
[422376702,1778899840000,-500.0,0.00014999,2]
[422376701,1778899840000,-500.0,0.00014999,2]
[422376678,1778899840000,-866.23275162,0.00014999,2]
[422376673,1778899840000,-866.23275162,0.00014999,2]
[422376670,1778899840000,-866.23275162,0.00014999,2]
[422376649,1778899840000,-884.4418485,0.00014999,2]
[422376650,1778899840000,-884.4418485,0.00014999,2]
[422376651,1778899840000,-319.08595609,0.00014999,2]
[422376653,1778899840000,-866.23275162,0.00014999,2]
[422376652,1778899840000,-866.23275162,0.00014999,2]
[422376654,1778899840000,-866.23275162,0.00014999,2]
[422376656,1778899840000,-866.23275162,0.00014999,2]
[422376662,1778899840000,-866.23275162,0.00014999,2]
[422376659,1778899840000,-866.23275162,0.00014999,2]
[422376661,1778899840000,-866.23275162,0.00014999,2]
[422376657,1778899840000,-866.23275162,0.00014999,2]
[422376655,1778899840000,-866.23275162,0.00014999,2]
[422376676,1778899840000,-866.23275162,0.00014999,2]
[422376658,1778899840000,-866.23275162,0.00014999,2]
[422376663,1778899840000,-866.23275162,0.00014999,2]
[422376664,1778899840000,-866.23275162,0.00014999,2]
[422376665,1778899840000,-866.23275162,0.00014999,2]
[422376667,1778899840000,-866.23275162,0.00014999,2]
[422376669,1778899840000,-866.23275162,0.00014999,2]
[422376666,1778899840000,-866.23275162,0.00014999,2]
[422376668,1778899840000,-866.23275162,0.00014999,2]